bitfinex/quotes_ETHUSD_20240924
["timestamp","ask_amount","ask_price","bid_price","bid_amount"]
[1727203874374,0.78513027,2643.8,2643.6,0.07506657]
[1727203874573,4.56752027,2643.9,2643.6,0.07506657]
[1727203875018,0.78513027,2643.8,2643.6,0.07506657]
[1727203876215,4.56770027,2643.7,2643.6,0.07506657]
[1727203876794,4.56770027,2643.7,2643.3,4.5512]
[1727203877120,0.78513027,2643.7,2643.4,0.90857149]
[1727203877812,0.78513027,2643.7,2643.4,4.69151149]
[1727203878195,0.78513027,2643.7,2643.6,3.78272]
[1727203878382,0.78513027,2643.9,2643.6,4.62596784]
[1727203878749,0.78513027,2643.9,2643.6,5.48609488]
[1727203879038,0.78513027,2643.9,2643.6,1.70337488]
[1727203879318,0.78513027,2643.8,2643.6,0.07514784]
[1727203879680,4.56756027,2643.8,2643.4,4.551]
[1727203879875,4.56756027,2643.8,2643.7,0.07509598]
[1727203880078,4.56756027,2643.8,2643.4,4.551]
[1727203880276,4.56756027,2643.8,2643.7,0.07509598]
[1727203880520,3.78259,2643.7,2643.4,0.7681]
[1727203881489,4.56759027,2643.8,2643.4,0.7681]
[1727203882215,4.56759027,2643.8,2643.5,0.0752762]
[1727203882819,0.78513027,2643.7,2643.5,0.0752762]
[1727203886345,0.78513027,2643.6,2643.5,0.0752762]
[1727203887442,1.1789967,2643.7,2643.5,0.0752762]
[1727203888006,1.1789967,2643.6,2643.5,0.0752762]
[1727203888211,1.1789967,2643.7,2643.5,0.0752762]
[1727203888418,0.78747159,2643.6,2643.5,0.0752762]
[1727203888641,4.9615967,2643.7,2643.5,0.0752762]
[1727203888917,3.78307,2643.4,2643.2,0.7681]
[1727203889118,0.78718675,2643.3,2643.2,0.7681]
[1727203889340,0.78754995,2643.3,2643.2,0.7681]
[1727203889957,1.18078012,2643.3,2643.2,0.7681]
[1727203894320,1.18078012,2643.4,2643.2,0.7681]
[1727203894519,1.18078012,2643.4,2643.2,5.89906436]
[1727203894520,0.78819646,2643.3,2643.2,5.89906436]
[1727203894926,0.78818178,2643.3,2643.2,5.89906436]
[1727203895132,0.78818178,2643.3,2643.2,2.11578436]
[1727203896118,0.78818178,2643.3,2643.2,9.11658778]
[1727203896319,1.18078012,2643.5,2643.2,9.11658778]
[1727203896320,0.78818178,2643.4,2643.3,4.54364]
[1727203896544,0.78818178,2643.5,2643.4,3.783]
[1727203896709,1.57388314,2643.7,2643.4,3.783]
[1727203896710,0.78818178,2643.7,2643.6,0.7605]
[1727203896918,0.78818178,2643.7,2643.6,1.52902136]
[1727203897138,0.78818178,2643.7,2643.6,8.45359494]
[1727203897420,0.78818178,2643.7,2643.6,8.52646184]
[1727203900856,1.18078012,2643.8,2643.7,3.78257]
[1727203901015,1.18078012,2643.8,2643.7,5.0862544]
[1727203904220,1.57388314,2643.9,2643.7,5.0862544]
[1727203904628,1.57388314,2643.8,2643.7,1.3036844]
[1727203904830,1.57388314,2643.8,2643.7,0.07276722]
[1727203906729,5.35631314,2643.8,2643.7,0.07276722]
[1727203906918,5.75276262,2643.8,2643.7,0.07276722]
[1727203907123,3.78259,2643.7,2643.3,0.7605]
[1727203907320,0.78806597,2643.4,2643.3,0.7605]
[1727203907651,0.78806597,2643.4,2643.3,2.334204]
[1727203907860,0.78806597,2643.4,2643.2,3.7832]
[1727203908156,0.78806597,2643.3,2643.2,3.7832]
[1727203908852,0.78806597,2643.4,2643.2,3.7832]
[1727203909058,0.78806597,2643.4,2643.1,0.7605]
[1727203909266,0.78806597,2643.3,2643.1,4.54385]
[1727203910421,0.78806597,2643.3,2643.1,5.876596]
[1727203912465,0.78806597,2643.3,2643.2,0.07283055]
[1727203915529,0.78806597,2643.3,2643.2,3.85612055]
[1727203915735,0.78806597,2643.3,2643.2,7.78477413]
[1727203916243,0.78806597,2643.4,2643.3,3.78314]
[1727203916543,1.18209896,2643.5,2643.3,5.52449661]
[1727203916738,1.18209896,2643.5,2643.4,3.783]
[1727203917267,1.18209896,2643.5,2643.4,3.85592763]
[1727203917630,1.18209896,2643.5,2643.4,0.07292763]
[1727203917854,1.18209896,2643.5,2643.4,3.85592763]
[1727203918266,1.57613194,2643.6,2643.4,0.07292763]
[1727203918468,1.57613194,2643.5,2643.4,0.07292763]
[1727203919665,5.35899194,2643.5,2643.4,0.07292763]
[1727203920041,1.57613194,2643.5,2643.4,0.07292763]
[1727203920246,1.9709023,2643.5,2643.4,0.07292763]
[1727203920769,5.7536823,2643.6,2643.4,0.07292763]
[1727203920967,6.64271881,2643.6,2643.4,0.07292763]
[1727203921272,6.6439782,2643.6,2643.4,0.07292763]
[1727203921431,2.8611982,2643.6,2643.4,0.07292763]
[1727203921639,3.78286,2643.5,2643.4,0.07292763]
[1727203921864,5.36063422,2643.5,2643.4,0.07292763]
[1727203922733,1.57777422,2643.5,2643.4,0.07292763]
[1727203922939,5.75488169,2643.6,2643.4,0.07292763]
[1727203922940,1.97216169,2643.6,2643.4,0.07292763]
[1727203923165,1.57756354,2643.5,2643.4,0.07292763]
[1727203928742,1.97157337,2643.6,2643.4,0.07292763]
[1727203928743,1.57756354,2643.6,2643.4,5.51441288]
[1727203928949,1.1827029,2643.6,2643.5,3.78286]
[1727203929486,1.1827029,2643.6,2643.5,3.85575488]
[1727203929638,1.1827029,2643.6,2643.5,5.1420989]
[1727203930134,1.1827029,2643.6,2643.5,0.07289488]
[1727203930448,1.57756354,2643.6,2643.5,0.07289488]
[1727203930649,1.57756354,2643.6,2643.3,0.5]
[1727203930650,3.78287,2643.5,2643.3,0.5]
[1727203930963,5.35922081,2643.4,2643.3,0.5]
[1727203931366,1.57622081,2643.4,2643.3,0.5]
[1727203936455,1.5765614,2643.4,2643.3,0.5]
[1727203938646,7.28043505,2643.4,2643.3,0.5]
[1727203938966,5.30998786,2643.4,2643.3,0.5]
[1727203939282,8.98701726,2643.4,2643.3,0.5]
[1727203939486,6.62248064,2643.4,2643.3,0.5]
[1727203939645,5.30998786,2643.4,2643.3,0.5]
[1727203939842,6.62221966,2643.4,2643.3,0.5]
[1727203940079,5.30998786,2643.4,2643.3,0.5]
[1727203940287,8.98668994,2643.4,2643.3,0.5]
[1727203942191,6.62215332,2643.4,2643.3,0.5]
[1727203943389,8.98668994,2643.4,2643.3,0.5]
[1727203943748,5.30998786,2643.4,2643.3,0.5]
[1727203946756,7.27830574,2643.4,2643.3,0.5]
[1727203946959,7.27830574,2643.4,2643.3,0.57320906]
[1727203947278,5.30998786,2643.4,2643.3,0.57320906]
[1727203947477,7.277938,2643.4,2643.3,0.57320906]
[1727203947661,5.30998786,2643.4,2643.3,0.5]
[1727203952886,6.48350211,2643.4,2643.3,0.5]
[1727203953058,6.48350211,2643.4,2643.3,0.57320906]
[1727203953260,6.48350211,2643.4,2643.3,0.5]
[1727203953881,4.51598786,2643.4,2643.3,0.5]
[1727203954768,6.48381005,2643.4,2643.3,0.5]
[1727203955205,4.51598786,2643.4,2643.3,0.5]
[1727203956124,5.26718786,2643.4,2643.3,0.5]
[1727203958909,7.23508139,2643.4,2643.3,0.5]
[1727203959117,5.26718786,2643.4,2643.3,0.5]
[1727203959674,7.23558289,2643.4,2643.3,0.57314686]
[1727203961600,1.96839503,2643.4,2643.3,0.57314686]
[1727203961798,3.78286,2643.5,2643.3,0.57314686]
[1727203961799,1.96839503,2643.5,2643.3,0.57314686]
[1727203962021,1.96839503,2643.5,2643.4,0.8289]
[1727203962502,5.75125503,2643.5,2643.4,0.07315237]
[1727203963082,3.78286,2643.5,2643.4,0.07315237]
[1727203963279,5.75234831,2643.5,2643.4,0.07315237]
[1727203963619,3.78286,2643.5,2643.4,0.07315237]
[1727203963990,1.9697809,2643.5,2643.4,0.07315237]
[1727203964581,1.9697809,2643.6,2643.4,0.07315237]
[1727203964892,1.18215231,2643.5,2643.4,5.23299768]
[1727203965095,1.57602784,2643.5,2643.4,5.30604484]
[1727203965303,1.57602784,2643.5,2643.4,6.13494484]
[1727203965679,1.18210976,2643.5,2643.4,6.13494484]
[1727203965883,1.18210976,2643.6,2643.5,4.61176]
[1727203966121,1.18210976,2643.6,2643.5,4.6847792]
[1727203966625,1.18210976,2643.7,2643.6,3.78272]
[1727203966913,1.18207684,2643.7,2643.6,3.85542914]
[1727203967119,1.18207684,2643.7,2643.6,4.95133647]
[1727203967321,1.57602784,2643.7,2643.6,4.95133647]
[1727203967621,1.18195121,2643.7,2643.6,1.16861647]
[1727203967921,1.18195121,2643.7,2643.6,4.95133647]
[1727203968121,1.1820148,2643.7,2643.6,4.95133647]
[1727203969424,1.1820148,2643.8,2643.6,4.95133647]
[1727203969630,1.1820148,2643.8,2643.7,0.57802365]
[1727203969941,1.57602784,2643.9,2643.7,0.65070484]
[1727203970104,1.18184033,2643.8,2643.7,0.65070484]
[1727203970731,1.57602784,2643.9,2643.7,0.65070484]
[1727203970926,1.18232297,2643.8,2643.7,0.65070484]
[1727203973168,3.78243,2643.8,2643.7,0.07268119]
[1727203973371,12.71474652,2643.8,2643.7,0.07268119]
[1727203973539,10.74477482,2643.8,2643.3,0.5]
[1727203973869,4.96502106,2643.4,2643.3,0.5]
[1727203974869,1.18202106,2643.4,2643.3,0.5]
[1727203975235,1.57602809,2643.5,2643.3,0.5]
[1727203975464,1.18209278,2643.4,2643.3,0.5]
[1727203975763,1.57602809,2643.4,2643.3,0.5]
[1727203975973,1.57602809,2643.5,2643.3,0.5]
[1727203976188,1.18207635,2643.4,2643.3,0.5]
[1727203976367,5.35894809,2643.5,2643.3,0.5]
[1727203977151,1.57602809,2643.4,2643.3,0.5]
[1727203977562,5.35894809,2643.5,2643.3,0.5]
[1727203977751,1.57602809,2643.4,2643.3,0.5]
[1727203978125,5.35894809,2643.5,2643.3,0.5]
[1727203978427,5.75289579,2643.6,2643.3,0.5]
[1727203978428,1.57602809,2643.4,2643.3,0.5]
[1727203978629,5.35902809,2643.4,2643.3,0.5]
[1727203979238,7.30869618,2643.4,2643.3,0.5]
[1727203979432,5.33852039,2643.4,2643.3,0.5]
[1727203980795,7.56697,2643.1,2642.8,0.8037]
[1727203981088,0.78846664,2642.9,2642.8,0.8037]
[1727203981304,1.18269996,2642.9,2642.8,0.8037]
[1727203981794,5.36065329,2642.9,2642.4,4.58812]
[1727203981995,0.78833111,2642.7,2642.4,5.266566]
[1727203982203,0.78833111,2642.6,2642.4,5.266566]
[1727203982491,0.78833111,2642.7,2642.4,5.266566]
[1727203982694,0.78833111,2642.7,2642.5,0.9051026]
[1727203983260,0.78833111,2642.7,2642.4,0.8037]
[1727203983456,4.57235111,2642.7,2642.4,0.8037]
[1727203983658,3.78429,2642.5,2642.0,0.8037]
[1727203983905,3.7845,2642.4,2642.0,0.8037]
[1727203984200,4.57283111,2642.4,2642.0,1.26643128]
[1727203984379,3.7845,2642.4,2642.0,1.26643128]
[1727203984994,4.57262111,2642.5,2641.7,6.78533]
[1727203984995,4.57300111,2642.3,2641.7,6.78533]
[1727203985157,4.57293111,2642.3,2641.8,4.6298528]
[1727203985362,0.78833111,2642.2,2641.8,0.8445828]
[1727203986296,8.35760111,2642.3,2641.8,1.68610908]
[1727203986497,4.57293111,2642.3,2641.8,1.68610908]
[1727203986684,0.78833111,2642.3,2641.8,5.47132908]
[1727203986887,4.57291111,2642.3,2641.8,5.47132908]
[1727203987091,0.78833111,2642.3,2641.8,8.6110639]
[1727203987417,0.78833111,2642.4,2642.0,4.59092]
[1727203987654,4.57283111,2642.4,2642.0,0.806]
[1727203987823,4.57283111,2642.4,2642.1,0.06924466]
[1727203988364,4.57283111,2642.4,2642.0,0.806]
[1727203988365,3.7845,2642.4,2642.2,0.06921667]
[1727203988659,3.7845,2642.4,2642.0,0.806]
[1727203988660,4.57283111,2642.4,2642.0,0.806]
[1727203989019,4.57283111,2642.4,2642.1,0.06924466]
[1727203989667,3.7845,2642.4,2642.1,0.06924466]
[1727203990187,4.57270111,2642.5,2642.3,0.806]
[1727203990188,0.78833111,2642.5,2642.3,0.806]
[1727203990470,0.78833111,2642.6,2642.3,0.806]
[1727203990778,3.78409,2642.7,2642.3,0.806]
[1727203990779,0.78833111,2642.7,2642.4,3.85359462]
[1727203990979,0.78833111,2642.7,2642.4,4.31265962]
[1727203991263,4.57242111,2642.7,2642.4,0.52824962]
[1727203991423,4.57242111,2642.7,2642.4,0.06918462]
[1727203992152,3.78404,2642.7,2642.4,0.06918462]
[1727203993352,0.78833111,2642.9,2642.7,0.806]
[1727203993553,0.78833111,2643.0,2642.7,4.59]
[1727203993757,0.78833111,2643.1,2642.8,0.068977]
[1727203994062,0.78833111,2643.2,2642.9,3.78368]
[1727203994230,0.78833111,2643.2,2642.9,3.85276777]
[1727203994728,0.78833111,2643.3,2642.9,3.85276777]
[1727203997881,4.57150111,2643.3,2642.9,0.06908777]
[1727203998544,4.57150111,2643.3,2642.8,3.78384]
[1727203999332,4.57150111,2643.3,2642.9,0.0688438]
[1727204002682,3.7833,2643.2,2642.9,0.0688438]
[1727204002887,4.57163111,2643.2,2642.9,0.0688438]
[1727204004075,5.30473722,2643.2,2642.9,0.0688438]
[1727204004390,3.78374,2642.9,2642.5,4.59028]
[1727204004753,3.78374,2642.9,2642.6,0.06892773]
[1727204005975,5.33366111,2643.1,2642.6,0.06892773]
[1727204006175,4.54533,2643.1,2642.6,0.06892773]
[1727204006376,4.54533,2643.1,2642.6,3.85305773]
[1727204006577,9.11717111,2643.1,2642.6,3.85305773]
[1727204006792,4.54533,2643.1,2642.6,3.85305773]
[1727204007290,3.78343,2643.1,2642.7,3.78394]
[1727204007680,3.78343,2643.1,2642.8,0.0688574]
[1727204008063,3.78343,2643.1,2642.7,3.78394]
[1727204008261,0.78833111,2643.2,2642.9,0.06877681]
[1727204008459,1.18249667,2643.3,2642.9,3.78365]
[1727204008460,0.78833111,2643.3,2642.9,3.78365]
[1727204008886,4.57148111,2643.3,2643.0,0.06874884]
[1727204009072,4.57148111,2643.3,2643.0,3.85230884]
[1727204009073,0.78833111,2643.3,2643.0,3.85230884]
[1727204009589,0.78833111,2643.3,2643.2,0.806]
[1727204009961,0.78833111,2643.3,2643.2,0.60955398]
[1727204011596,0.78833111,2643.4,2643.2,0.60955398]
[1727204011913,0.78833111,2643.3,2643.2,0.60955398]
[1727204012113,0.78833111,2643.4,2643.2,0.60955398]
[1727204012314,0.78833111,2643.3,2643.2,0.60955398]
[1727204014682,0.78833111,2643.3,2643.2,0.06866898]
[1727204015183,0.78833111,2643.3,2643.2,0.06066898]
[1727204015486,0.78833111,2643.3,2643.0,4.61188]
[1727204015687,0.78833111,2643.3,2643.2,0.06066898]
[1727204016213,0.78833111,2643.3,2643.1,3.78336]
[1727204016416,0.78833111,2643.3,2643.2,0.06066898]
[1727204019917,0.78833111,2643.3,2643.2,3.84395898]
[1727204020119,0.78769287,2643.4,2643.3,4.61154]
[1727204020418,0.78769287,2643.5,2643.4,3.783]
[1727204020823,0.78769287,2643.5,2643.4,3.84304982]
[1727204023125,0.78769287,2643.5,2643.4,0.06004982]
[1727204023346,0.78769287,2643.5,2643.4,3.84304982]
[1727204025625,0.78769287,2643.6,2643.4,3.84304982]
[1727204025833,0.78769287,2643.6,2643.5,3.78286]
[1727204026035,0.78769287,2643.6,2643.5,4.62829098]
[1727204026376,1.18249667,2643.7,2643.6,4.61112]
[1727204026377,0.78769287,2643.7,2643.6,4.61112]
[1727204026567,0.78769287,2643.7,2643.6,4.67099913]
[1727204027036,0.78769287,2643.8,2643.6,4.67099913]
[1727204027539,0.78769287,2643.8,2643.6,0.8284]
[1727204027739,1.18249667,2643.9,2643.7,0.05985117]
[1727204027936,4.96480667,2643.9,2643.7,0.05985117]
[1727204028140,6.19355323,2643.9,2643.7,0.05985117]
[1727204028350,0.78812705,2643.8,2643.5,3.78284]
[1727204028559,0.78812705,2643.8,2643.6,0.05969266]
[1727204029532,1.18249667,2643.9,2643.6,0.05969266]
[1727204029533,0.78812705,2643.7,2643.6,0.05969266]
[1727204030330,0.78812705,2643.8,2643.6,0.05969266]
[1727204030835,0.78812705,2643.7,2643.6,0.05969266]
[1727204031266,0.78812705,2643.7,2643.4,3.78299]
[1727204031468,0.78812705,2643.7,2643.6,0.05964007]
[1727204031659,0.78812705,2643.7,2643.5,0.05966803]
[1727204031852,0.78812705,2643.7,2643.6,0.05964007]
[1727204032244,0.78812705,2643.7,2643.4,3.78299]
[1727204032443,0.78812705,2643.7,2643.6,0.05964963]
[1727204033086,0.78812705,2643.7,2643.4,3.78299]
[1727204033288,0.78812705,2643.7,2643.6,0.05964963]
[1727204033469,0.78812705,2643.7,2643.5,0.05967759]
[1727204033670,0.78812705,2643.7,2643.6,0.05964963]
[1727204033893,1.52111975,2643.7,2643.6,0.05964963]
[1727204034064,1.52111975,2643.7,2643.4,3.78299]
[1727204034268,0.78846362,2643.7,2643.6,0.05964963]
[1727204034461,0.78846362,2643.7,2643.5,0.05967759]
[1727204034774,0.78846362,2643.7,2643.6,0.05964963]
[1727204034946,0.78846362,2643.7,2643.3,4.61144]
[1727204035151,0.78846362,2643.6,2643.4,0.05970555]
[1727204036968,1.18249667,2643.6,2643.4,0.05970555]
[1727204037160,0.7890546,2643.5,2643.4,0.05970555]
[1727204037551,1.18249667,2643.6,2643.4,0.05970555]
[1727204037761,0.78925631,2643.5,2643.4,0.05970555]
[1727204037961,1.18249667,2643.6,2643.4,0.05970555]
[1727204038497,1.18249667,2643.5,2643.4,0.05970555]
[1727204039697,3.78322,2643.3,2642.8,8.1779]
[1727204039914,0.7892775,2643.1,2642.8,8.1779]
[1727204041110,0.7892775,2643.0,2642.8,9.6270115]
[1727204042000,0.7892775,2643.0,2642.8,2.2170115]
[1727204044794,0.7892775,2642.4,2642.2,0.8216]
[1727204045193,3.05002388,2642.4,2641.9,0.8216]
[1727204045371,3.78501,2642.0,2641.8,0.0385828]
[1727204045571,4.5742875,2642.0,2641.8,0.0385828]
[1727204046133,0.7892775,2642.0,2641.8,0.0385828]
[1727204046478,4.5741675,2642.1,2641.8,0.0385828]
[1727204047170,4.5741675,2642.1,2641.9,0.04838396]
[1727204048193,3.78489,2642.1,2641.9,0.04838396]
[1727204048836,4.5739375,2642.3,2642.0,0.8216]
[1727204049320,4.5739375,2642.3,2642.1,0.04832797]
[1727204050033,0.7892775,2642.4,2642.1,6.97692646]
[1727204050344,4.5734275,2642.6,2642.1,8.13529011]
[1727204051031,4.5734275,2642.6,2642.1,4.99155162]
[1727204051413,4.5734275,2642.6,2642.1,0.04832797]
[1727204052412,3.78444,2642.4,2642.1,0.04832797]
[1727204052752,3.78431,2642.5,2642.1,0.04832797]
[1727204053336,8.3576675,2642.6,2642.1,0.04832797]
[1727204053896,3.78444,2642.4,2642.1,0.04832797]
[1727204054393,4.56474,2642.4,2642.1,0.04832797]
[1727204054593,3.78472,2642.2,2642.1,0.04832797]
[1727204054794,3.78488,2642.1,2641.8,0.0385828]
[1727204055028,3.78488,2642.1,2641.9,0.04839351]
[1727204058656,3.78467,2642.3,2641.9,0.04839351]
[1727204058965,3.78444,2642.4,2642.0,4.6066]
[1727204059159,3.78444,2642.4,2642.0,0.8216]
[1727204059375,3.78444,2642.4,2642.1,0.04864339]
[1727204060926,3.78463,2642.3,2642.1,0.04864339]
[1727204061230,4.56502,2642.2,2642.1,0.04864339]
[1727204061445,4.56502,2642.2,2641.8,0.8601828]
[1727204061734,4.56502,2642.2,2642.1,0.04863383]
[1727204061936,4.56502,2642.2,2641.8,0.8601828]
[1727204062561,4.56502,2642.2,2641.9,0.04868981]
[1727204063985,3.78452,2642.4,2641.9,0.04868981]
[1727204064190,3.78452,2642.4,2642.0,3.78499]
[1727204064374,8.34881,2642.6,2642.1,4.65508383]
[1727204064679,3.7843,2642.5,2642.2,0.46550838]
[1727204064880,3.7843,2642.5,2642.1,4.65508383]
[1727204065184,3.7843,2642.5,2642.1,4.60645]
[1727204065564,3.7843,2642.5,2642.2,0.04860584]
[1727204065766,3.78407,2642.7,2642.2,3.83331584]
[1727204066076,3.78431,2642.5,2642.2,0.04860584]
[1727204066249,3.78431,2642.5,2642.2,0.51411642]
[1727204066889,3.78416,2642.6,2642.2,4.29882642]
[1727204067089,3.78433,2642.5,2642.2,0.51411642]
[1727204067405,3.78416,2642.6,2642.2,0.04860584]
[1727204067691,7.56842,2642.6,2642.2,0.04860584]
[1727204068059,3.78416,2642.6,2642.2,0.04860584]
[1727204074264,3.7845,2642.4,2642.2,0.04860584]
[1727204075608,3.78425,2642.6,2642.2,0.04860584]
[1727204075609,3.78431,2642.5,2642.2,0.04860584]
[1727204076274,3.78423,2642.6,2642.2,4.67729842]
[1727204076464,5.3534975,2642.8,2642.2,4.67729842]
[1727204076665,3.78423,2642.6,2642.2,0.04860584]
[1727204076897,0.7892775,2642.7,2642.2,0.04860584]
[1727204077103,3.78445,2642.4,2642.2,0.04860584]
[1727204077502,3.78422,2642.6,2642.2,0.04860584]
[1727204077839,3.7843,2642.5,2642.2,0.04860584]
[1727204080372,3.78444,2642.4,2642.2,0.04860584]
[1727204080708,4.5735675,2642.5,2642.2,0.04860584]
[1727204081632,0.7892775,2642.4,2642.2,0.04860584]
[1727204081995,4.5735675,2642.5,2642.2,0.04860584]
[1727204082330,0.7892775,2642.4,2642.2,0.04860584]
[1727204083627,0.7892775,2642.4,2642.2,3.83322584]
[1727204083813,0.7892775,2642.4,2642.2,4.29870842]
[1727204085422,0.7892775,2642.3,2642.2,4.29870842]
[1727204087703,1.18391626,2642.4,2642.3,3.78458]
[1727204087908,1.18391626,2642.4,2642.2,0.51408842]
[1727204087909,1.18391626,2642.4,2642.2,4.29878842]
[1727204088102,0.7904125,2642.3,2642.2,4.25018258]
[1727204088398,0.7904125,2642.3,2642.2,3.7847]
[1727204088616,1.18391626,2642.3,2642.2,3.7847]
[1727204088931,1.18391626,2642.3,2642.1,0.8216]
[1727204089349,1.18391626,2642.2,2642.1,0.8216]
[1727204092317,1.18391626,2642.2,2642.1,0.87009045]
[1727204093048,1.57855501,2642.3,2642.1,0.87009045]
[1727204093643,1.18712627,2642.2,2642.1,0.87009045]
[1727204094820,1.57855501,2642.3,2642.1,0.87009045]
[1727204095026,1.57855501,2642.2,2642.1,0.87009045]
[1727204095838,1.57855501,2642.3,2642.1,0.87009045]
[1727204096034,1.18752546,2642.2,2642.1,0.87009045]
[1727204096448,1.18752546,2642.2,2642.1,4.65495045]
[1727204097328,1.57855501,2642.3,2642.1,4.65495045]
[1727204098060,1.18760241,2642.2,2642.1,4.65495045]
[1727204098628,1.18760241,2642.2,2642.1,0.87009045]
[1727204099023,1.18767648,2642.2,2642.1,0.87009045]
[1727204099261,1.57855501,2642.2,2642.1,0.87009045]
[1727204099755,1.57855501,2642.3,2642.1,0.87009045]
[1727204099957,1.57855501,2642.3,2642.1,4.65495045]
[1727204100255,1.57855501,2642.2,2642.1,4.65495045]
[1727204100566,1.57855501,2642.3,2642.1,4.65495045]
[1727204101067,1.57855501,2642.3,2642.1,0.04849045]
[1727204101281,1.57855501,2642.2,2642.1,0.04849045]
[1727204104063,0.81401641,2642.2,2642.1,0.04849045]
[1727204104291,4.59873641,2642.2,2642.1,0.04849045]
[1727204104471,0.81401641,2642.2,2641.8,0.0385828]
[1727204104636,6.95796495,2642.3,2641.8,0.0385828]
[1727204104637,1.58490469,2641.9,2641.8,3.8237628]
[1727204104841,1.58490469,2642.0,2641.9,3.78515]
[1727204105153,1.58490469,2642.1,2642.0,3.78501]
[1727204105564,1.58490469,2642.1,2642.0,3.83211497]
[1727204105768,1.58527219,2642.1,2642.0,3.83211497]
[1727204105953,1.58527219,2642.1,2642.0,5.42797975]
[1727204106476,1.18901629,2642.1,2642.0,1.64296975]
[1727204106796,1.18901629,2642.1,2642.0,5.42797975]
[1727204107241,1.18901629,2642.2,2642.1,3.78486]
[1727204107639,1.18901629,2642.2,2642.1,3.83184138]
[1727204107836,1.18901629,2642.2,2642.1,5.2766876]
[1727204108272,1.18901629,2642.2,2642.1,6.72730362]
[1727204109985,1.18901629,2642.2,2642.1,5.2766876]
[1727204110939,1.18901629,2642.2,2642.1,0.04698138]
[1727204111146,1.58527219,2642.2,2642.1,3.83184138]
[1727204111783,1.58527219,2642.3,2642.1,3.83184138]
[1727204111988,1.58510154,2642.3,2642.2,3.78472]
[1727204112284,1.98092724,2642.4,2642.3,3.78458]
[1727204112746,1.98092724,2642.4,2642.3,3.82986139]
[1727204114774,1.98119008,2642.4,2642.3,3.82986139]
[1727204116853,1.98119008,2642.5,2642.3,3.82986139]
[1727204117383,1.98119008,2642.4,2642.3,3.82986139]
[1727204118669,1.98119008,2642.5,2642.3,3.82986139]
[1727204118887,1.58437756,2642.4,2642.3,7.61433139]
[1727204119083,0.79225371,2642.4,2642.3,6.89663055]
[1727204121176,0.79225371,2642.5,2642.4,3.78443]
[1727204121405,1.18838419,2642.6,2642.5,4.55799]
[1727204121406,0.79225371,2642.6,2642.5,4.55799]
[1727204121710,1.9806379,2643.1,2642.9,4.55742]
[1727204121868,1.18838419,2643.1,2643.0,6.00788602]
[1727204122068,0.79225371,2643.2,2643.1,4.55713]
[1727204122311,0.79225371,2643.3,2643.2,3.78329]
[1727204122675,0.79225371,2643.3,2643.2,3.82800899]
[1727204123368,0.79225371,2643.4,2643.2,3.82800899]
[1727204123568,0.79225371,2643.4,2643.3,3.78314]
[1727204123813,0.79225371,2643.4,2643.3,3.82565415]
[1727204123973,0.79225371,2643.4,2643.3,4.9779167]
[1727204124307,1.18838419,2643.6,2643.4,3.783]
[1727204124308,0.79225371,2643.5,2643.4,3.783]
[1727204124903,0.79225371,2643.5,2643.4,3.82548618]
[1727204125112,0.79098869,2643.5,2643.4,3.82548618]
[1727204125273,0.79068611,2643.6,2643.5,4.55656]
[1727204125605,0.79068611,2643.7,2643.6,3.78272]
[1727204125982,0.79068611,2643.8,2643.6,3.82515026]
[1727204126169,0.79068611,2643.8,2643.6,7.60787026]
[1727204126505,0.79068611,2643.8,2643.7,3.78257]
[1727204126732,0.79068611,2643.8,2643.7,3.8249723]
[1727204128199,0.79068611,2643.9,2643.7,3.8249723]
[1727204128891,0.79068611,2643.9,2643.7,0.0424023]
[1727204129113,0.8059,2643.8,2643.7,0.0424023]
[1727204129610,0.8059,2643.8,2643.4,3.7829]
[1727204129775,0.8059,2643.8,2643.7,0.0424023]
[1727204129978,0.8059,2643.8,2643.5,3.78277]
[1727204130190,0.8059,2643.8,2643.7,0.0424023]
[1727204130394,0.8059,2643.8,2643.4,3.78299]
[1727204130606,0.8059,2643.8,2643.7,0.0424023]
[1727204130802,0.8059,2643.8,2643.4,3.78299]
[1727204131036,0.8059,2643.8,2643.7,0.0424023]
[1727204131037,4.58833,2643.8,2643.7,0.0424023]
[1727204131526,4.58833,2643.8,2643.1,3.78335]
[1727204131527,3.78285,2643.6,2643.1,3.78335]
[1727204131723,3.78285,2643.6,2643.0,0.7737]
[1727204131724,3.78287,2643.5,2643.0,3.78357]
[1727204132386,3.76853679,2643.5,2643.0,4.617603]
[1727204133898,3.76853679,2643.5,2643.0,8.401103]
[1727204134390,3.76853679,2643.5,2643.0,4.617603]
[1727204134594,3.76853679,2643.5,2643.0,3.7835]
[1727204135437,0.8059,2643.6,2643.2,3.78328]
[1727204136311,4.58862,2643.6,2643.2,3.78328]
[1727204137435,4.58862,2643.6,2643.3,0.04104117]
[1727204137797,4.58862,2643.6,2643.1,4.54333]
[1727204138439,0.8059,2643.6,2643.2,3.82433914]
[1727204138613,4.5887,2643.6,2643.2,0.04106914]
[1727204138814,0.8059,2643.6,2643.2,3.82431914]
[1727204139021,0.78870743,2643.7,2643.5,3.78286]
[1727204139216,0.8202,2643.8,2643.5,3.78286]
[1727204139508,0.8202,2643.8,2643.6,0.04095729]
[1727204141101,4.60266,2643.8,2643.6,0.04095729]
[1727204141433,5.63885716,2643.8,2643.3,3.78307]
[1727204141759,4.60266,2643.8,2643.3,3.78307]
[1727204141922,4.60266,2643.8,2643.4,0.04101321]
[1727204142639,5.39136743,2643.8,2643.4,3.82401321]
[1727204142830,4.60266,2643.8,2643.4,3.82401321]
[1727204143032,5.39136743,2643.8,2643.4,3.82401321]
[1727204143359,3.78259,2643.7,2643.4,0.04101321]
[1727204143527,5.63885716,2643.8,2643.3,3.78312]
[1727204143858,9.17388743,2643.8,2643.5,0.04106644]
[1727204144018,4.60266,2643.8,2643.4,0.04109441]
[1727204144363,4.60266,2643.8,2643.5,0.04106644]
[1727204144554,4.60266,2643.8,2643.3,3.78312]
[1727204144762,0.8202,2643.8,2643.7,3.13998134]
[1727204144921,0.8202,2644.1,2643.7,3.7825]
[1727204145116,0.78870743,2644.2,2643.7,0.11656826]
[1727204145320,2.00858419,2644.4,2644.2,3.78185]
[1727204145321,0.8202,2644.4,2644.2,3.78185]
[1727204145844,0.8202,2644.4,2644.3,0.04075687]
[1727204146223,0.8202,2644.4,2644.2,3.78185]
[1727204146421,0.8202,2644.4,2644.3,0.04075687]
[1727204146837,0.79729162,2644.6,2644.2,3.78179]
[1727204147038,4.57851162,2644.7,2644.3,0.04075687]
[1727204147348,3.78122,2644.7,2644.2,3.78179]
[1727204147656,3.78122,2644.7,2644.4,0.04072892]